[Event "XII Cracow ICC-A 2024"]
[Site "Krakow"]
[Date "2024.06.25"]
[Round "5.16"]
[White "Damen, Jip"]
[Black "Licznerski, Lukasz"]
[Result "1/2-1/2"]
[ECO "B12"]
[WhiteElo "2259"]
[BlackElo "2434"]
[Annotator "TA"]
[PlyCount "183"]
[EventDate "2024.06.20"]
[EventType "swiss"]
[EventCountry "POL"]
[SourceTitle "playchess.com"]
[Source "ChessBase"]
[SourceQuality "1"]
[TimeControl "40/5400+30:1800+30"]

{[%evp 13,183,37,30,10,21,10,20,8,22,16,18,17,8,12,27,0,0,0,0,0,0,-5,0,-17,-12,-16,-8,-59,-55,-63,-60,-44,-35,-55,-67,-72,-71,-83,-81,-88,-67,-50,-65,-70,-51,-64,-56,-60,-59,-64,-67,-47,-22,-43,-5,-92,-59,-75,0,0,0,-79,-79,-81,-81,-88,-81,-83,-56,-67,-56,-56,-56,-75,-27,-31,0,-19,-19,-19,0,-63,-63,-65,-70,-72,-72,-79,-63,-100,-100,-100,-100,-100,-100,-100,-100,-100,-100,-100,-100,-100,-100,-100,-100,-100,-100,-100,-100,-100,-100,-100,-100,-100,-100,-100,-100,-100,-100,-100,-100,-100,-100,-100,-100,-100,-100,-100,-100,-100,0,0,0,-80,0,0,0,0,0,0,0,0,0,0,0,0,0,0,0,0,0,0,0,0,0,0,0,0,0,0,0,0,0,0,0,0,0,0,0,0,0,0]} 1. e4 {[%emt 0:00:02]} c6 {[%emt 0:12:20]} 2. d4 {[%emt 0:00:06]} d5 {[%emt 0:00:07]} 3. e5 {[%emt 0:00:06]} Bf5 {[%emt 0:00:05]} 4. Nf3 {[%emt 0:00:05]} e6 {[%emt 0:00:08]} 5. Be2 {[%emt 0:00:06]} c5 {[%emt 0:00:05]} 6. Be3 {[%emt 0:00:23]} cxd4 {[%emt 0:00:08]} 7. Nxd4 {[%emt 0:00:07]} Ne7 {[%emt 0:00:05]} 8. Nd2 {[%emt 0:00:43]} Nbc6 {[%emt 0:00:03]} 9. N2f3 {[%emt 0:00:12]} Be4 {[%emt 0:00:10]} 10. O-O {[%emt 0:05:26]} Bxf3 {[%emt 0:00:03]} 11. Nxf3 {[%emt 0:00:16]} Ng6 {[%emt 0:00:03][%cal Of8e7]} 12. c4 {[%emt 0:08:49]} dxc4 {[%emt 0:00:20]} 13. Bxc4 {[%emt 0:00:28]} Qc7 {[%emt 0:00:03]} 14. Bb5 {[%emt 0:09:28]} Be7 $1 {[%emt 0:00:19]} 15. Qc2 {[%emt 0:03:57]} O-O {[%emt 0:00:20]} 16. Bxc6 {[%emt 0:01:28]} bxc6 {[%emt 0:00:04]} 17. Rfe1 {[%emt 0:07:14]} Rac8 {[%emt 0:07:14]} 18. Rac1 {[%emt 0:05:43]} Nxe5 {[%emt 0:08:11]} 19. Nxe5 {[%emt 0:00:07]} Qxe5 {[%emt 0:00:03]} 20. Bxa7 {[%emt 0:01:05]} (20. h3 $11) 20... Qa5 $15 {[%emt 0:00:04][%csl LRa2,LRa7]} 21. Bd4 {[%emt 0:07:06]} Qxa2 {[%emt 0:02:31]} 22. Qc3 {[%emt 0:01:05]} g6 {[%emt 0:00:15]} 23. Ra1 {[%emt 0:22:03]} Qd5 {[%emt 0:03:12]} 24. Ra7 {[%emt 0:02:31]} Rfe8 {[%emt 0:08:21]} 25. Re5 {[%emt 0:07:03]} Qd8 {[%emt 0:01:49][%cal Oc6c5]} 26. Re1 {[%emt 0:00:57]} Qd6 {[%emt 0:10:06]} 27. Bh8 {[%emt 0:05:43]} Bf8 {[%emt 0:00:30] Wards off Qg7+} 28. Be5 {[%emt 0:00:41]} Qb4 {[%emt 0:10:17]} (28... Qd5 {seems wilder.} 29. Qc1 Re7 30. Qf4 Rxa7 31. Qf6 Qxe5 32. Qxe5 Bg7) 29. Qxb4 {[%emt 0:04:09]} Bxb4 {[%emt 0:00:03]} 30. Rc1 {[%emt 0:00:07]} Ra8 {[%emt 0:03:15]} 31. Rb7 {[%emt 0:00:57]} Bd2 {[%emt 0:00:47]} 32. Rd1 {[%emt 0:00:12][%cal Og2g3]} Red8 {[%emt 0:00:10][%cal Od2f4] [#] Strongly threatening ...Bf4!} 33. Kf1 {[%emt 0:00:50]} Rd5 {[%emt 0:01:37]} 34. Bf6 {[%emt 0:00:48]} (34. f4 $1 $11) 34... Bf4 {[%emt 0:11:28]} 35. Ke2 {[%emt 0:00:40]} Rb8 {[%emt 0:06:07]} (35... Bxh2 $2 {is the wrong capture.} 36. Rxd5 cxd5 37. g3 $18) (35... Rxd1 $17 36. Kxd1 Ra5 (36... Bxh2 37. g3 $16)) 36. Rxb8+ $1 $11 {[%emt 0:00:31]} Bxb8 {[%emt 0:00:02][%mdl 4096] Endgame. KRB-KRB} 37. Rc1 {[%emt 0:00:58]} (37. Ra1 $11 {keeps the balance.} h5 (37... Bxh2 38. Ra8+) 38. Ra8) 37... Be5 $17 {[%emt 0:00:36]} (37... Bxh2 $2 38. Rxc6 Bd6 39. Rc8+ Bf8 40. Be7 $18) 38. Bxe5 {[%emt 0:01:27]} Rxe5+ {[%emt 0:00:02] KR-KR} 39. Kd3 {[%emt 0:00:12]} Rd5+ {[%emt 0:00:08]} 40. Ke3 {[%emt 0:00:21]} Rd6 {[%emt 0:01:03]} 41. b4 {[%emt 0:33:57]} Kg7 {[%emt 0:34:34]} 42. Rc5 {[%emt 0:00:59]} Kf6 {[%emt 0:00:14]} 43. g3 {[%emt 0:01:15]} g5 {[%emt 0:00:49]} (43... Ke7 $17) 44. Rc4 {[%emt 0:01:27]} Kg6 {[%emt 0:03:08]} 45. h4 {[%emt 0:00:37]} (45. Rd4 $5 Rd5 $8 46. h4 $11) 45... h6 {[%emt 0:00:07]} 46. hxg5 {[%emt 0:00:22]} hxg5 {[%emt 0:00:03]} 47. Rc5 {[%emt 0:00:12]} ({White should play} 47. Rd4 $1 $11 Rd5 48. Rxd5 exd5 (48... cxd5 $2 {perishes.} 49. b5 $18) 49. g4) 47... f5 $15 {[%emt 0:00:16]} 48. Ke2 {[%emt 0:00:00]} g4 {[%emt 0:00:00]} 49. Ke3 {[%emt 0:00:00]} Kf6 {[%emt 0:00:00]} 50. Rc4 {[%emt 0:00:00]} Ke7 {[%emt 0:00:00]} 51. Rc5 {[%emt 0:00:00]} Kd7 {[%emt 0:00:00]} 52. b5 {[%emt 0:00:00]} cxb5 {[%emt 0:00:00]} 53. Rxb5 {[%emt 0:00:00]} Ke7 {[%emt 0:00:00]} 54. Rb8 {[%emt 0:00:00]} Kf6 {[%emt 0:00:00]} 55. Rf8+ {[%emt 0:00:00]} Ke5 {[%emt 0:00:00]} 56. Ra8 {[%emt 0:00:00]} Rd5 {[%emt 0:00:00]} 57. Rb8 {[%emt 0:00:00]} Ra5 {[%emt 0:00:00]} 58. Rb3 {[%emt 0:00:00]} Rc5 {[%emt 0:00:00]} 59. Ra3 {[%emt 0:00:00]} Rb5 {[%emt 0:00:00]} 60. Rd3 {[%emt 0:00:00]} Rb4 {[%emt 0:00:00] [#] ...Re4+ is the strong threat.} 61. Ra3 {[%emt 0:00:00]} Rb1 {[%emt 0:00:00]} 62. Ra5+ {[%emt 0:00:00]} Kf6 {[%emt 0:00:00]} 63. Ke2 {[%emt 0:00:00]} Rb2+ {[%emt 0:00:00]} 64. Ke3 {[%emt 0:00:00]} Rc2 {[%emt 0:00:00]} 65. Rb5 {[%emt 0:00:00]} Ke7 {[%emt 0:00:00]} 66. Rb3 {[%emt 0:00:00]} Kd6 {[%emt 0:00:00]} 67. Rd3+ {[%emt 0:00:00]} Kc5 {[%emt 0:00:00]} 68. Ra3 {[%emt 0:00:00]} Kd5 {[%emt 0:00:00]} 69. Rd3+ {[%emt 0:00:00]} Ke5 {[%emt 0:00:00]} 70. Ra3 {[%emt 0:00:00]} Rc5 {[%emt 0:00:00]} 71. Rb3 {[%emt 0:00:00]} Kd5 {[%emt 0:00:00]} (71... Rc4 $17) 72. Rd3+ $1 $11 {[%emt 0:00:00]} Kc4 {[%emt 0:00:00]} 73. Rd4+ {[%emt 0:00:00]} (73. Rd6 $11 {remains equal.}) 73... Kc3 {[%emt 0:00:00]} ({Better is} 73... Kb5 $17) 74. Rd3+ {[%emt 0:00:00] The position is equal.} Kc2 {[%emt 0:00:00]} 75. Rd2+ {[%emt 0:00:00]} Kc1 {[%emt 0:00:00] ( -> ...Re5+)} 76. Rd6 $1 {[%emt 0:06:17]} Re5+ {[%emt 0:00:00]} 77. Kf4 {[%emt 0:00:03]} Re2 {[%emt 0:00:00]} 78. Kg5 {[%emt 0:00:05]} Kc2 {[%emt 0:00:00]} 79. Kf6 {[%emt 0:00:19]} Rxf2 {[%emt 0:00:00]} 80. Rxe6 {[%emt 0:01:16]} f4 {[%emt 0:00:00]} 81. gxf4 {[%emt 0:00:25]} Kd3 {[%emt 0:00:00]} 82. Re8 {[%emt 0:04:02]} g3 {[%emt 0:00:00][%cal Og3g2] White must now prevent ...g2!} 83. f5 {[%emt 0:01:21]} g2 {[%emt 0:00:00]} 84. Rg8 {[%emt 0:00:04]} Ke4 {[%emt 0:00:00]} 85. Ke6 {[%emt 0:00:57]} Ra2 {[%emt 0:00:00]} 86. f6 {[%emt 0:02:30]} Ra6+ {[%emt 0:00:00]} 87. Ke7 {[%emt 0:00:11]} Ra7+ {[%emt 0:00:00]} 88. Ke6 {[%emt 0:00:08]} Ra6+ {[%emt 0:00:00]} 89. Ke7 {[%emt 0:00:08]} Rxf6 {[%emt 0:00:00]} 90. Kxf6 {[%emt 0:00:11]} Kf3 {[%emt 0:00:00]} 91. Rxg2 {[%emt 0:00:08]} Kxg2 {[%emt 0:00:00]} 92. Ke5 {Weighted Error Value: White=0.12 (very precise) /Black=0.09 (flawless) .  Mistake:       	White=5     	Black=4      Inaccurate:     	White=2     	Black=4      OK:         	White=35    	Black=32     Best:        	White=2     	Black=6      Strong:       	White=3     	Black=1} 1/2-1/2

[Event "XII Cracow ICC-A 2024"]
[Site "Krakow"]
[Date "2024.06.25"]
[Round "5.17"]
[White "Berin, Artem"]
[Black "Aarav Dengla"]
[Result "1/2-1/2"]
[ECO "D31"]
[WhiteElo "2234"]
[BlackElo "2395"]
[Annotator "RC"]
[PlyCount "73"]
[EventDate "2024.06.20"]
[EventType "swiss"]
[EventCountry "POL"]
[SourceTitle "playchess.com"]
[Source "ChessBase"]
[SourceQuality "1"]
[TimeControl "40/5400+30:1800+30"]

1. d4 {[%emt 0:00:04]} d5 {[%emt 0:00:31]} 2. c4 {[%emt 0:00:05]} e6 {[%emt 0:00:06]} 3. Nc3 {[%emt 0:00:06]} Bb4 {[%emt 0:00:06]} 4. e3 {[%emt 0:00:12]} Nf6 {[%emt 0:00:24]} 5. a3 {[%emt 0:00:31]} Bxc3+ {[%emt 0:00:37]} 6. bxc3 {[%emt 0:00:06]} O-O {[%emt 0:02:24]} 7. cxd5 {[%emt 0:00:25]} exd5 {[%emt 0:00:33]} 8. Bd3 {[%emt 0:00:10]} b6 {[%emt 0:02:58]} 9. Ne2 {[%emt 0:00:15]} Ba6 {[%emt 0:15:10]} 10. Bxa6 {[%emt 0:00:31]} Nxa6 {[%emt 0:00:06]} 11. Qd3 {[%emt 0:00:05]} Qc8 {[%emt 0:02:41]} 12. O-O {[%emt 0:01:13]} c5 {[%emt 0:05:34]} 13. f3 {[%emt 0:01:19]} Re8 {[%emt 0:02:11]} 14. Ng3 {[%emt 0:01:00]} c4 {[%emt 0:03:33]} 15. Qb1 {[%emt 0:01:06]} Qc6 {[%emt 0:04:42]} 16. Ra2 {[%emt 0:08:12]} Nc7 {[%emt 0:11:10]} 17. Re2 {[%emt 0:00:40]} h5 {[%emt 0:15:48]} 18. Rfe1 {[%emt 0:02:45]} Nb5 {[%emt 0:07:40]} 19. Qc2 {[%emt 0:00:23]} Nd6 {[%emt 0:03:56]} 20. Nf5 {[%emt 0:02:06]} Nxf5 {[%emt 0:01:17]} 21. Qxf5 {[%emt 0:00:07]} Qc8 {[%emt 0:02:00]} 22. Qg5 {[%emt 0:05:13]} Qc6 {[%emt 0:00:46]} 23. Qh4 {[%emt 0:14:35]} b5 {[%emt 0:07:59]} 24. e4 {[%emt 0:00:19]} dxe4 {[%emt 0:00:04]} 25. fxe4 {[%emt 0:00:04]} a5 {[%emt 0:00:04]} 26. e5 {[%emt 0:06:11]} Nd5 {[%emt 0:01:37]} 27. Qxh5 {[%emt 0:00:10]} Re6 {[%emt 0:03:23]} 28. Re4 {[%emt 0:15:39]} Nf6 {[%emt 0:04:12]} 29. exf6 {[%emt 0:01:21]} Rxe4 {[%emt 0:00:01]} 30. Rf1 {[%emt 0:00:11]} gxf6 {[%emt 0:01:22]} 31. Bg5 {[%emt 0:14:11]} Re6 {[%emt 0:01:08]} 32. Bh4 {[%emt 0:05:37]} Qe4 {[%emt 0:00:01]} 33. h3 {[%emt 0:06:23]} Qg6 {[%emt 0:00:36]} 34. Qd5 {[%emt 0:02:06]} Qe4 {[%emt 0:00:39]} 35. Qh5 {[%emt 0:00:06]} Qg6 {[%emt 0:00:05]} 36. Qd5 {[%emt 0:06:47]} Qe4 {[%emt 0:00:01]} 37. Qh5 {[%emt 0:00:07]} 1/2-1/2

[Event "XII Cracow ICC-A 2024"]
[Site "Krakow"]
[Date "2024.06.25"]
[Round "5.18"]
[White "Apoorv Kamble"]
[Black "Lohia, Sohum"]
[Result "0-1"]
[ECO "C54"]
[WhiteElo "2369"]
[BlackElo "2270"]
[Annotator "RC"]
[PlyCount "104"]
[EventDate "2024.06.20"]
[EventType "swiss"]
[EventCountry "POL"]
[SourceTitle "playchess.com"]
[Source "ChessBase"]
[SourceQuality "1"]
[TimeControl "40/5400+30:1800+30"]

1. e4 {[%emt 0:03:13]} e5 {[%emt 0:00:02]} 2. Nf3 {[%emt 0:00:06]} Nc6 {[%emt 0:00:10]} 3. Bc4 {[%emt 0:00:05]} Nf6 {[%emt 0:00:08]} 4. d3 {[%emt 0:00:05]} Bc5 {[%emt 0:00:10]} 5. c3 {[%emt 0:00:05]} a5 {[%emt 0:00:19]} 6. Nbd2 {[%emt 0:00:11]} d6 {[%emt 0:00:12]} 7. h3 {[%emt 0:00:15]} O-O {[%emt 0:01:41]} 8. O-O {[%emt 0:00:04]} h6 {[%emt 0:00:22]} 9. Re1 {[%emt 0:00:11]} Be6 {[%emt 0:00:14]} 10. a4 {[%emt 0:00:25]} Bxc4 {[%emt 0:00:49]} 11. Nxc4 {[%emt 0:00:06]} Re8 {[%emt 0:00:24]} 12. Be3 {[%emt 0:02:30]} b6 {[%emt 0:01:30]} 13. Bxc5 {[%emt 0:10:14]} bxc5 {[%emt 0:01:09]} 14. Qd2 {[%emt 0:02:25]} Qd7 {[%emt 0:15:22]} 15. Nh4 {[%emt 0:05:07]} Nh5 {[%emt 0:08:29]} 16. Nf5 {[%emt 0:06:16]} Ne7 {[%emt 0:06:49]} 17. Nce3 {[%emt 0:06:10]} Nf4 {[%emt 0:21:34]} 18. Kh2 {[%emt 0:06:29]} Nxf5 {[%emt 0:08:12]} 19. Nxf5 {[%emt 0:00:32]} g6 {[%emt 0:02:34]} 20. Ne3 {[%emt 0:04:01]} Kg7 {[%emt 0:04:08]} 21. d4 {[%emt 0:09:26]} Qe6 {[%emt 0:07:32]} 22. dxc5 {[%emt 0:09:35]} dxc5 {[%emt 0:00:10]} 23. Rad1 {[%emt 0:00:03]} Rad8 {[%emt 0:02:49]} 24. Qxd8 {[%emt 0:19:06]} Rxd8 {[%emt 0:00:05]} 25. Rxd8 {[%emt 0:00:04]} Qb3 {[%emt 0:01:25]} 26. Rd2 {[%emt 0:00:47]} c4 {[%emt 0:00:55]} 27. Ra1 {[%emt 0:02:03]} Nd3 {[%emt 0:04:09]} 28. Ra3 {[%emt 0:05:15]} Qb7 {[%emt 0:00:16]} 29. f3 {[%emt 0:01:19]} Qa6 {[%emt 0:06:16]} 30. b3 {[%emt 0:01:39]} cxb3 {[%emt 0:01:14]} 31. Rxb3 {[%emt 0:00:01]} c6 {[%emt 0:00:43]} 32. Rb1 {[%emt 0:04:09]} h5 {[%emt 0:00:41]} 33. Rbd1 {[%emt 0:03:42]} Nc5 {[%emt 0:00:11]} 34. Rd6 {[%emt 0:01:16]} Qe2 {[%emt 0:00:41]} 35. Nf1 {[%emt 0:00:01]} Nxa4 {[%emt 0:00:37]} 36. R6d2 {[%emt 0:00:54]} Qb5 {[%emt 0:00:35]} 37. Rc2 {[%emt 0:00:11]} Nc5 {[%emt 0:00:54]} 38. Ne3 {[%emt 0:00:02]} a4 {[%emt 0:00:30]} 39. Rdd2 {[%emt 0:01:08]} a3 {[%emt 0:01:35]} 40. Nd1 {[%emt 0:00:31]} Nb3 {[%emt 0:02:22]} 41. c4 {[%emt 0:12:17]} Qa4 {[%emt 0:11:15]} 42. Rf2 {[%emt 0:06:56]} Nd4 {[%emt 0:00:17]} 43. Rc1 {[%emt 0:08:42]} a2 {[%emt 0:02:14]} 44. Ra1 {[%emt 0:00:25]} Nc2 {[%emt 0:00:25]} 45. Nc3 {[%emt 0:01:37]} Qb3 {[%emt 0:00:19]} 46. Rxa2 {[%emt 0:01:25]} Nb4 {[%emt 0:00:18]} 47. Ra7 {[%emt 0:01:45]} Qxc3 {[%emt 0:00:17]} 48. Rb7 {[%emt 0:00:19]} Nd3 {[%emt 0:00:21]} 49. Ra2 {[%emt 0:00:08]} Qxc4 50. Raa7 {[%emt 0:00:13]} h4 {[%emt 0:00:57]} 51. Rd7 {[%emt 0:00:42]} Nf4 {[%emt 0:00:24]} 52. Rac7 {[%emt 0:01:31]} Qa2 {[%emt 0:00:12]} 0-1

[Event "XII Cracow ICC-A 2024"]
[Site "Krakow"]
[Date "2024.06.25"]
[Round "5.19"]
[White "Citak, Selim"]
[Black "Klepek, Witold"]
[Result "1-0"]
[ECO "B40"]
[WhiteElo "2345"]
[BlackElo "2236"]
[Annotator "RC"]
[PlyCount "119"]
[EventDate "2024.06.20"]
[EventType "swiss"]
[EventCountry "POL"]
[SourceTitle "playchess.com"]
[Source "ChessBase"]
[SourceQuality "1"]
[TimeControl "40/5400+30:1800+30"]

1. e4 {[%emt 0:02:11]} c5 {[%emt 0:01:50]} 2. Nf3 {[%emt 0:00:07]} e6 {[%emt 0:00:10]} 3. d4 {[%emt 0:00:13]} cxd4 {[%emt 0:00:04]} 4. Nxd4 {[%emt 0:00:07]} Nf6 {[%emt 0:00:05]} 5. Nc3 {[%emt 0:00:12]} Nc6 {[%emt 0:00:05]} 6. Ndb5 {[%emt 0:00:24]} Bb4 {[%emt 0:00:17]} 7. a3 {[%emt 0:00:22]} Bxc3+ {[%emt 0:00:17]} 8. Nxc3 {[%emt 0:00:07]} d5 {[%emt 0:00:04]} 9. exd5 {[%emt 0:00:59]} exd5 {[%emt 0:00:04]} 10. Bd3 {[%emt 0:00:19]} O-O {[%emt 0:00:12]} 11. O-O {[%emt 0:00:16]} d4 {[%emt 0:00:07]} 12. Ne2 {[%emt 0:00:28]} Qd5 {[%emt 0:03:07]} 13. Nf4 {[%emt 0:06:22]} Qd6 {[%emt 0:01:23]} 14. Nh5 {[%emt 0:07:39]} Nxh5 {[%emt 0:02:58]} 15. Qxh5 {[%emt 0:00:27]} h6 {[%emt 0:09:02]} 16. Re1 {[%emt 0:00:41]} Bd7 {[%emt 0:01:36]} 17. Bd2 {[%emt 0:08:06]} Rfe8 {[%emt 0:02:43]} 18. h3 {[%emt 0:04:04]} Rac8 {[%emt 0:16:44]} 19. f4 {[%emt 0:13:37]} Ne7 {[%emt 0:11:09]} 20. Re4 {[%emt 0:03:20]} Bc6 {[%emt 0:03:14]} 21. Bb4 {[%emt 0:02:45]} Qf6 {[%emt 0:14:06]} 22. Bxe7 {[%emt 0:02:05]} Rxe7 {[%emt 0:00:05]} 23. Rxe7 {[%emt 0:00:06]} Qxe7 {[%emt 0:00:02]} 24. Qf5 {[%emt 0:00:34]} Qe6 {[%emt 0:00:07]} 25. Qh7+ {[%emt 0:02:27]} Kf8 {[%emt 0:00:03]} 26. Qh8+ {[%emt 0:01:22]} Ke7 {[%emt 0:01:43]} 27. Qxg7 {[%emt 0:00:03]} Qe3+ {[%emt 0:00:10]} 28. Kh2 {[%emt 0:00:16]} Qxf4+ {[%emt 0:00:25]} 29. Kh1 {[%emt 0:01:07]} Qe3 {[%emt 0:00:39]} 30. Qg4 {[%emt 0:04:46]} Re8 {[%emt 0:02:09]} 31. Bc4 {[%emt 0:12:44]} Qe4 {[%emt 0:04:05]} 32. Qg3 {[%emt 0:05:46]} Kf8 {[%emt 0:00:58]} 33. Rf1 {[%emt 0:01:52]} Re7 {[%emt 0:00:16]} 34. Rf4 {[%emt 0:02:55]} Qe3 {[%emt 0:11:31]} 35. Qh4 {[%emt 0:02:47]} Qe1+ {[%emt 0:04:18]} 36. Qxe1 {[%emt 0:00:08]} Rxe1+ {[%emt 0:00:03]} 37. Kh2 {[%emt 0:00:03]} Rb1 {[%emt 0:02:21]} 38. b3 {[%emt 0:06:52]} b5 {[%emt 0:03:05]} 39. Bxf7 {[%emt 0:00:29]} Kg7 {[%emt 0:00:04]} 40. Bh5 {[%emt 0:03:04]} Rb2 {[%emt 0:00:55]} 41. Rg4+ {[%emt 0:34:53]} Kf8 {[%emt 0:31:30]} 42. Bg6 {[%emt 0:00:07]} Ra2 {[%emt 0:00:25]} 43. Rxd4 {[%emt 0:00:36]} Rxa3 {[%emt 0:00:12]} 44. Rd6 {[%emt 0:00:57]} Bb7 {[%emt 0:00:30]} 45. Bd3 {[%emt 0:01:06]} Ra6 {[%emt 0:00:09]} 46. Rxa6 {[%emt 0:02:18]} Bxa6 {[%emt 0:00:06]} 47. b4 {[%emt 0:00:09]} Ke7 {[%emt 0:00:21]} 48. g4 {[%emt 0:01:19]} Kf6 {[%emt 0:05:46]} 49. Kg3 {[%emt 0:00:15]} Ke5 {[%emt 0:00:38]} 50. c3 {[%emt 0:00:19]} Kf6 {[%emt 0:00:08]} 51. Kf4 {[%emt 0:00:00]} Ke6 {[%emt 0:00:00]} 52. h4 {[%emt 0:00:00]} Kf6 {[%emt 0:00:00]} 53. Bf1 {[%emt 0:00:00]} Ke6 {[%emt 0:00:00]} 54. Be2 {[%emt 0:00:00]} Kf6 {[%emt 0:00:00]} 55. Bd3 {[%emt 0:00:00]} Ke6 {[%emt 0:00:00]} 56. g5 {[%emt 0:00:00]} hxg5+ {[%emt 0:00:00]} 57. hxg5 {[%emt 0:00:00]} Kf7 {[%emt 0:00:00]} 58. Ke5 {[%emt 0:00:00]} Kg7 {[%emt 0:00:00]} 59. Kd6 {[%emt 0:00:00]} Bb7 {[%emt 0:00:00]} 60. Kc5 {[%emt 0:00:00]} 1-0

[Event "XII Cracow ICC-A 2024"]
[Site "Krakow"]
[Date "2024.06.25"]
[Round "5.20"]
[White "Nandhidhaa, P V"]
[Black "Panjer, Sidney"]
[Result "1/2-1/2"]
[ECO "A14"]
[WhiteElo "2344"]
[BlackElo "2185"]
[Annotator "RC"]
[PlyCount "55"]
[EventDate "2024.06.20"]
[EventType "swiss"]
[EventCountry "POL"]
[SourceTitle "playchess.com"]
[Source "ChessBase"]
[SourceQuality "1"]
[TimeControl "40/5400+30:1800+30"]

1. Nf3 {[%emt 0:03:06]} d5 {[%emt 0:00:46]} 2. g3 {[%emt 0:02:16]} Nf6 {[%emt 0:00:14]} 3. Bg2 {[%emt 0:00:08]} e6 {[%emt 0:00:06]} 4. O-O {[%emt 0:00:28]} Be7 {[%emt 0:00:07]} 5. c4 {[%emt 0:00:47]} O-O {[%emt 0:00:14]} 6. b3 {[%emt 0:00:59]} b6 {[%emt 0:00:04]} 7. Bb2 {[%emt 0:00:30]} Bb7 {[%emt 0:00:20]} 8. e3 {[%emt 0:01:40]} c5 {[%emt 0:05:58]} 9. Qe2 {[%emt 0:02:45]} Nc6 {[%emt 0:07:09]} 10. Rd1 {[%emt 0:04:01]} Rc8 {[%emt 0:02:57]} 11. Na3 {[%emt 0:05:10]} Rc7 {[%emt 0:02:52]} 12. cxd5 {[%emt 0:13:27]} Nxd5 {[%emt 0:06:23]} 13. e4 {[%emt 0:07:23]} Ndb4 {[%emt 0:05:07]} 14. d4 {[%emt 0:04:03]} cxd4 {[%emt 0:02:05]} 15. Nxd4 {[%emt 0:01:52]} Nxd4 {[%emt 0:05:05]} 16. Bxd4 {[%emt 0:03:19]} Rd7 {[%emt 0:03:37]} 17. Bc3 {[%emt 0:04:52]} Nd3 {[%emt 0:19:01]} 18. Nc4 {[%emt 0:02:43]} Bc5 {[%emt 0:01:27]} 19. Ne3 {[%emt 0:03:53]} Ba6 {[%emt 0:05:41]} 20. Qg4 {[%emt 0:06:12]} g6 {[%emt 0:01:42]} 21. Qf3 {[%emt 0:01:03]} Bd4 {[%emt 0:13:00]} 22. Bxd4 {[%emt 0:01:13]} Rxd4 {[%emt 0:00:02]} 23. Bf1 {[%emt 0:04:38]} f5 {[%emt 0:07:09]} 24. exf5 {[%emt 0:01:36]} Ne5 {[%emt 0:00:17]} 25. Qg2 {[%emt 0:01:22]} Bxf1 {[%emt 0:00:30]} 26. Rxd4 {[%emt 0:04:35]} Bxg2 {[%emt 0:04:01]} 27. Rxd8 {[%emt 0:00:06]} Rxd8 {[%emt 0:00:11]} 28. Nf1 1/2-1/2

[Event "XII Cracow ICC-A 2024"]
[Site "Krakow"]
[Date "2024.06.25"]
[Round "5.21"]
[White "Turski, Bartlomiej"]
[Black "Southcott-Moyers, Indy"]
[Result "1-0"]
[ECO "D35"]
[WhiteElo "2334"]
[BlackElo "2182"]
[Annotator "ChessBase"]
[PlyCount "133"]
[EventDate "2024.06.20"]
[EventType "swiss"]
[EventCountry "POL"]
[SourceTitle "playchess.com"]
[Source "ChessBase"]
[SourceQuality "1"]
[TimeControl "40/5400+30:1800+30"]

1. d4 {[%emt 0:00:05]} d5 {[%emt 0:00:10]} 2. c4 {[%emt 0:00:04]} e6 {[%emt 0:02:49]} 3. Nc3 {[%emt 0:00:07]} Nf6 {[%emt 0:00:56]} 4. cxd5 {[%emt 0:00:04]} exd5 {[%emt 0:00:09]} 5. Bg5 {[%emt 0:00:06]} c6 {[%emt 0:00:39]} 6. e3 {[%emt 0:00:08]} h6 {[%emt 0:02:06]} 7. Bh4 {[%emt 0:08:10]} Be7 {[%emt 0:00:22]} 8. Bd3 {[%emt 0:01:10]} O-O {[%emt 0:01:40]} 9. h3 {[%emt 0:01:48]} Ne4 {[%emt 0:14:16]} 10. Bxe7 {[%emt 0:03:16]} Qxe7 {[%emt 0:00:08]} 11. Bxe4 {[%emt 0:04:31]} dxe4 {[%emt 0:00:09]} 12. Qc2 {[%emt 0:07:43]} Re8 {[%emt 0:06:31]} 13. Nge2 {[%emt 0:01:54]} Nd7 {[%emt 0:04:35]} 14. O-O {[%emt 0:08:52]} Nf6 {[%emt 0:01:37]} 15. Rfd1 {[%emt 0:01:52]} Bf5 {[%emt 0:04:18]} 16. Rac1 {[%emt 0:11:13]} Rac8 {[%emt 0:11:30]} 17. Ng3 {[%emt 0:07:05]} Bg6 {[%emt 0:00:56]} 18. Qb3 {[%emt 0:05:04]} Red8 {[%emt 0:10:21]} 19. Rd2 {[%emt 0:07:54]} c5 {[%emt 0:06:52]} 20. Qa3 {[%emt 0:02:37]} Kf8 {[%emt 0:05:33]} 21. Qxa7 {[%emt 0:05:21]} Ra8 {[%emt 0:00:40]} 22. Qb6 {[%emt 0:00:12]} Ra6 {[%emt 0:00:10]} 23. Qb5 {[%emt 0:00:59]} cxd4 {[%emt 0:02:08]} 24. Rxd4 {[%emt 0:01:27]} Rxd4 {[%emt 0:03:28]} 25. exd4 {[%emt 0:00:03]} Kg8 {[%emt 0:01:31]} 26. Re1 {[%emt 0:04:58]} Re6 {[%emt 0:01:22]} 27. Re3 {[%emt 0:04:52]} Qc7 {[%emt 0:01:37]} 28. Qc5 {[%emt 0:04:25]} Qd7 {[%emt 0:02:05]} 29. Nge2 {[%emt 0:01:33]} Rd6 {[%emt 0:01:46]} 30. Qe5 {[%emt 0:01:25]} Kh7 {[%emt 0:04:24]} 31. a4 {[%emt 0:03:10]} Rb6 {[%emt 0:04:40]} 32. Nb5 {[%emt 0:02:59]} Nd5 {[%emt 0:00:41]} 33. Rg3 {[%emt 0:00:52]} Re6 {[%emt 0:02:03]} 34. Qb8 {[%emt 0:00:09]} Qc6 {[%emt 0:01:09]} 35. Nec3 {[%emt 0:01:20]} e3 {[%emt 0:01:26]} 36. fxe3 {[%emt 0:00:14]} Nxe3 {[%emt 0:01:17]} 37. Qf4 {[%emt 0:00:37]} Nf5 {[%emt 0:01:25]} 38. Rf3 {[%emt 0:00:20]} Qd7 {[%emt 0:00:49]} 39. Kh2 {[%emt 0:00:33]} Nd6 {[%emt 0:00:41]} 40. d5 {[%emt 0:00:44]} Rf6 {[%emt 0:00:16]} 41. Qg4 {[%emt 0:05:50]} Qe7 {[%emt 0:03:06]} 42. Rxf6 {[%emt 0:01:34]} Qxf6 {[%emt 0:01:01]} 43. Nxd6 {[%emt 0:05:21]} Qxd6+ {[%emt 0:00:07]} 44. Qg3 {[%emt 0:00:23]} Qb4 {[%emt 0:03:48]} 45. Qc7 {[%emt 0:05:47]} Qd4 {[%emt 0:04:40]} 46. a5 {[%emt 0:03:07]} h5 {[%emt 0:04:09]} 47. Qg3 {[%emt 0:01:26]} h4 {[%emt 0:01:04]} 48. Qe1 {[%emt 0:00:16]} f6 {[%emt 0:02:44]} 49. Qd1 {[%emt 0:01:35]} Qe5+ {[%emt 0:02:46]} 50. Kh1 {[%emt 0:00:12]} Bf5 {[%emt 0:00:11]} 51. Qh5+ {[%emt 0:00:47]} Kg8 {[%emt 0:00:07]} 52. Qxh4 {[%emt 0:00:09]} Qe3 {[%emt 0:00:19]} 53. Kh2 {[%emt 0:01:21]} Qd2 {[%emt 0:00:15]} 54. Qb4 {[%emt 0:01:46]} Qe3 {[%emt 0:02:32]} 55. Qh4 {[%emt 0:02:31]} Qd2 {[%emt 0:00:10]} 56. Qc4 {[%emt 0:00:07]} Qxb2 {[%emt 0:01:26]} 57. d6+ {[%emt 0:00:20]} Kh8 {[%emt 0:03:18]} 58. Qh4+ {[%emt 0:04:19]} Kg8 {[%emt 0:00:09]} 59. Qc4+ {[%emt 0:00:02]} Kh8 {[%emt 0:00:11]} 60. Qd5 {[%emt 0:00:23]} Qf2 {[%emt 0:04:09]} 61. Ne4 {[%emt 0:02:17]} Qf4+ {[%emt 0:00:26]} 62. Ng3 {[%emt 0:00:02]} Bd7 {[%emt 0:00:12]} 63. Qxb7 {[%emt 0:00:59]} Qxd6 {[%emt 0:00:10]} 64. a6 {[%emt 0:00:33]} Bc6 {[%emt 0:01:12]} 65. Qc8+ {[%emt 0:00:14]} Kh7 {[%emt 0:00:03]} 66. a7 {[%emt 0:00:57]} Bxg2 {[%emt 0:00:09]} 67. Qc2+ {[%emt 0:00:20]} 1-0